lending/lending_fUSD_20250121
["ID","MTS","AMOUNT","RATE_DAILY","PERIOD"]
[349809659,1737439848665,-431.14264476,0.00022,2]
[349809660,1737439848678,-18236.23542995,0.00022,2]
[349809661,1737439848691,-15721.76121439,0.00022,2]
[349809662,1737439848704,-54829.5808286,0.00022,2]
[349809663,1737439849184,-500.0,0.00021173,2]
[349809664,1737439849194,-21332.03883039,0.00022,2]
[349809665,1737439849206,-2174.85551915,0.00022,2]
[349809666,1737439849218,-5823.70633745,0.00022,2]
[349809667,1737439849326,-559.9925308,0.00022,2]
[349809668,1737439849338,-584.94064966,0.00022,2]
[349809669,1737439849351,-1071.66119502,0.00022,2]
[349809670,1737439849363,-276.90237614,0.00022,2]
[349809671,1737439849375,-11587.0,0.00022,2]
[349809672,1737439849393,-1554897.46211454,0.00022,2]
[349809673,1737439849405,-262.43720369,0.00022,2]
[349809674,1737439849595,-2751.84280008,0.00020921,2]
[349809675,1737439849607,-3099.18487588,0.00020921,2]
[349809676,1737439849618,-1513.95007,0.00020921,2]
[349809677,1737439849629,-971.40816,0.00020921,2]
[349809678,1737439849649,-452.71499348,0.00020921,2]
[349809679,1737439849667,-795.85595095,0.00020921,2]
[349809680,1737439859295,4867.175592,0.000158,5]
[349809681,1737440572552,1000.0,0.00024,120]
[349809682,1737440643779,1000.0,0.00024,120]
[349809683,1737440670806,161.56553443,0.00024,120]
[349809684,1737440707990,84989.95,0.00012,2]
[349809685,1737440729246,13703.05766743,0.00011,2]
[349809688,1737440761671,160.24,0.00010137,2]
[349809689,1737440879222,79126.315859,0.0001,2]
[349809698,1737440950118,-1251.86406748,0.000113,2]
[349809699,1737440950142,-889.90738251,0.00011999,2]
[349809700,1737440950162,-150.0,0.00011999,2]
[349809701,1737440950184,-2183.04219729,0.00012,2]
[349809702,1737440963081,-154.9230746,0.00012,2]
[349809705,1737440992122,-334253.55368345,0.00012,2]
[349809709,1737441031411,-300.0,0.00014899,2]
[349809710,1737441031422,-1172.14757156,0.000149,2]
[349809711,1737441031434,-947.31015434,0.000149,2]
[349809712,1737441031445,-1925.13,0.000149,2]
[349809713,1737441031457,-294.33656805,0.000149,2]
[349809714,1737441031498,-2891.93350643,0.000149,2]
[349809715,1737441031508,-201.70595578,0.000149,2]
[349809716,1737441031517,-550.0,0.00015,2]
[349809717,1737441031527,-1639.93319777,0.00015678,2]
[349809718,1737441031585,-5590.92460259,0.00015678,2]
[349809719,1737441031595,-420.0,0.00016308,2]
[349809720,1737441031604,-7230.85780036,0.00016455,2]
[349809721,1737441031614,-7230.85780036,0.00017233,2]
[349809722,1737441031623,-587.0,0.0001785,2]
[349809723,1737441031632,-3169.55875766,0.00018011,2]
[349809724,1737441031648,-3901.32582496,0.00018011,2]
[349809725,1737441031690,-159.97321774,0.00018011,2]
[349809726,1737441031700,-727.43,0.00018484,2]
[349809727,1737441031709,-1092.06471325,0.00018788,2]
[349809728,1737441031721,-3799.37093081,0.00018788,2]
[349809729,1737441031881,-2339.4221563,0.00018788,2]
[349809730,1737441031891,-500.0,0.00019178,2]
[349809731,1737441031900,-500.0,0.00019178,2]
[349809732,1737441031909,-643.03,0.00019178,2]
[349809733,1737441031919,-500.0,0.00019178,2]
[349809734,1737441031928,-311.2478437,0.00019178,2]
[349810112,1737441037488,-188.7521563,0.00019178,2]
[349810113,1737441037498,-500.0,0.00019178,2]
[349810114,1737441037507,-500.07,0.00019178,2]
[349810115,1737441037516,-500.0,0.00019178,2]
[349810116,1737441037525,-500.0,0.00019178,2]
[349810117,1737441037535,-500.0,0.00019178,2]
[349810118,1737441037544,-500.0,0.00019178,2]
[349810119,1737441037554,-796.59,0.00019178,2]
[349810120,1737441037567,-500.0,0.00019178,2]
[349810121,1737441037577,-548.98,0.00019178,2]
[349810122,1737441037586,-168.68,0.00019178,2]
[349810123,1737441037596,-500.0,0.00019178,2]
[349810124,1737441037606,-500.0,0.00019178,2]
[349810125,1737441037615,-500.0,0.00019178,2]
[349810126,1737441037624,-500.0,0.00019178,2]
[349810127,1737441037634,-500.0,0.00019178,2]
[349810128,1737441037643,-169.54,0.00019178,2]
[349810129,1737441037652,-500.0,0.00019178,2]
[349810137,1737441037855,-500.0,0.00019178,2]
[349810139,1737441037864,-364.55039,0.00019178,2]
[349810141,1737441037873,-500.0,0.00019178,2]
[349810143,1737441037883,-500.0,0.00019178,2]
[349810145,1737441037892,-500.0,0.00019178,2]
[349810147,1737441037902,-690.0,0.000193,5]
[349810149,1737441037911,-500.0,0.00019452,2]
[349810151,1737441037921,-500.0,0.00019452,2]
[349810152,1737441037934,-500.0,0.00019452,2]
[349810154,1737441037943,-500.0,0.00019452,2]
[349810156,1737441037952,-500.0,0.00019452,2]
[349810158,1737441037962,-500.0,0.00019452,2]
[349810160,1737441037971,-500.0,0.00019452,2]
[349810162,1737441037980,-500.0,0.00019452,2]
[349810164,1737441037989,-500.0,0.00019452,2]
[349810166,1737441037998,-796.59,0.00019452,2]
[349810168,1737441038007,-500.0,0.00019452,2]
[349810171,1737441038021,-500.0,0.00019452,2]
[349810173,1737441038030,-500.0,0.00019452,2]
[349810175,1737441038039,-500.0,0.00019452,2]
[349810177,1737441038048,-500.0,0.00019452,2]
[349810179,1737441038058,-410.60409615,0.00019452,2]
[349810181,1737441038069,-500.0,0.00019452,2]
[349810183,1737441038078,-500.0,0.00019452,2]
[349810185,1737441038087,-500.0,0.00019452,2]
[349810187,1737441038097,-500.0,0.00019452,2]
[349810189,1737441038107,-500.0,0.00019452,2]
[349810191,1737441038115,-823.0,0.00019538,2]
[349810193,1737441038124,-7230.85780036,0.00019566,2]
[349810195,1737441038133,-500.0,0.00019726,2]
[349810197,1737441038142,-500.0,0.00019726,2]
[349810199,1737441038152,-379.88,0.00019726,2]
[349810201,1737441038163,-500.0,0.00019726,2]
[349810202,1737441038172,-500.0,0.00019726,2]
[349810204,1737441038181,-500.0,0.00019726,2]
[349810207,1737441038191,-500.0,0.00019726,2]
[349810208,1737441038201,-500.0,0.00019726,2]
[349810211,1737441038210,-500.0,0.00019726,2]
[349810212,1737441038219,-796.59,0.00019726,2]
[349810214,1737441038229,-500.0,0.00019726,2]
[349810215,1737441038238,-500.0,0.00019726,2]
[349810216,1737441038247,-500.0,0.00019726,2]
[349810217,1737441038257,-500.0,0.00019726,2]
[349810218,1737441038267,-500.0,0.00019726,2]
[349810219,1737441038276,-500.0,0.00019726,2]
[349810220,1737441038286,-500.0,0.00019726,2]
[349810221,1737441038296,-500.0,0.00019726,2]
[349810222,1737441038305,-500.0,0.00019726,2]
[349810223,1737441038315,-204.4,0.00019766,2]
[349810224,1737441038327,-500.0,0.0002,2]
[349810225,1737441038336,-500.0,0.0002,2]
[349810226,1737441038347,-500.0,0.0002,2]
[349810227,1737441038357,-500.0,0.0002,2]
[349810228,1737441038366,-500.0,0.0002,2]
[349810229,1737441038379,-500.0,0.0002,2]
[349810230,1737441038389,-500.0,0.0002,2]
[349810231,1737441038399,-500.0,0.0002,2]
[349810232,1737441038409,-796.59,0.0002,2]
[349810233,1737441038418,-500.0,0.0002,2]
[349810234,1737441038429,-500.0,0.0002,2]
[349810235,1737441038438,-500.0,0.0002,2]
[349810236,1737441038448,-500.0,0.0002,2]
[349810237,1737441038458,-500.0,0.0002,2]
[349810238,1737441038467,-500.0,0.0002,2]
[349810239,1737441038478,-500.0,0.0002,2]
[349810240,1737441038488,-589.45208519,0.0002,2]
[349810241,1737441038498,-500.0,0.0002,2]
[349810242,1737441038508,-1000.0,0.00020134,2]
[349810243,1737441038518,-500.0,0.00020273,2]
[349810244,1737441038527,-326.65236895,0.00020273,2]
[349810245,1737441038537,-500.0,0.00020273,2]
[349810246,1737441038547,-500.0,0.00020273,2]
[349810247,1737441038557,-500.0,0.00020273,2]
[349810248,1737441038569,-500.0,0.00020273,2]
[349810249,1737441038579,-500.0,0.00020273,2]
[349810250,1737441038589,-460.77812282,0.00020273,2]
[349810251,1737441038599,-796.59,0.00020273,2]
[349810252,1737441038609,-500.0,0.00020273,2]
[349810253,1737441038619,-619.26839182,0.00020273,2]
[349810254,1737441038628,-500.0,0.00020273,2]
[349810255,1737441038637,-506.81764113,0.00020273,2]
[349810256,1737441038646,-500.0,0.00020273,2]
[349810257,1737441038656,-500.0,0.00020273,2]
[349810258,1737441038666,-500.0,0.00020273,2]
[349810259,1737441038676,-23900.0,0.00020306,2]
[349810260,1737441038685,-268.61,0.00020328,2]
[349810261,1737441038695,-7230.85780036,0.00020344,2]
[349810262,1737441038705,-157.97,0.00020367,2]
[349810263,1737441038715,-183.33,0.00020378,2]
[349810264,1737441038724,-438.32,0.00020424,2]
[349810265,1737441038734,-250.0,0.00020432,2]
[349810266,1737441038743,-250.0,0.00020456,2]
[349810267,1737441038753,-500.0,0.00020547,2]
[349810268,1737441038762,-500.0,0.00020547,2]
[349810269,1737441038771,-500.0,0.00020547,2]
[349810270,1737441038781,-500.0,0.00020547,2]
[349810271,1737441038791,-500.0,0.00020547,2]
[349810272,1737441038800,-500.0,0.00020547,2]
[349810273,1737441038810,-796.59,0.00020547,2]
[349810274,1737441038821,-500.0,0.00020547,2]
[349810275,1737441038831,-500.0,0.00020547,2]
[349810276,1737441038840,-500.0,0.00020547,2]
[349810277,1737441038850,-500.0,0.00020547,2]
[349810278,1737441038859,-500.0,0.00020547,2]
[349810279,1737441038869,-584.62,0.00020726,30]
[349810280,1737441038879,-727.43,0.00020748,2]
[349810281,1737441038888,-1000.0,0.000208,2]
[349810282,1737441038897,-500.0,0.00020821,2]
[349810283,1737441038907,-500.0,0.00020821,2]
[349810284,1737441038917,-500.0,0.00020821,2]
[349810285,1737441038926,-500.0,0.00020821,2]
[349810286,1737441038935,-500.0,0.00020821,2]
[349810287,1737441038944,-500.0,0.00020821,2]
[349810288,1737441038953,-796.59,0.00020821,2]
[349810289,1737441038962,-500.0,0.00020821,2]
[349810290,1737441038971,-500.0,0.00020821,2]
[349810291,1737441038981,-500.0,0.00020821,2]
[349810292,1737441038991,-500.0,0.00020821,2]
[349810293,1737441039000,-500.0,0.00020821,2]
[349810294,1737441039010,-500.0,0.0002092,2]
[349810295,1737441039019,-500.0,0.0002092,2]
[349810296,1737441039028,-1226.84,0.00020999,2]
[349810297,1737441039038,-873.93983687,0.00021,2]
[349810298,1737441039047,-1511.4980396,0.00021,2]
[349810299,1737441039056,-261.26953253,0.00021095,2]
[349810300,1737441039067,-500.0,0.00021095,2]
[349810301,1737441039077,-500.0,0.00021095,2]
[349810302,1737441039087,-500.0,0.00021095,2]
[349810303,1737441039096,-500.0,0.00021095,2]
[349810304,1737441039105,-500.0,0.00021095,2]
[349810305,1737441039115,-796.59,0.00021095,2]
[349810306,1737441039124,-500.0,0.00021095,2]
[349810307,1737441039133,-500.0,0.00021095,2]
[349810308,1737441039143,-500.0,0.00021095,2]
[349810309,1737441039153,-500.0,0.00021095,2]
[349810310,1737441039165,-176.35,0.00021096,2]
[349810311,1737441039175,-7230.85780036,0.00021121,2]
[349810312,1737441039184,-152.0,0.00021179,3]
[349810313,1737441039193,-500.0,0.00021194,2]
[349810314,1737441039204,-500.0,0.00021194,2]
[349810315,1737441039213,-500.0,0.00021369,2]
[349810316,1737441039222,-500.0,0.00021369,2]
[349810317,1737441039233,-500.0,0.00021369,2]
[349810318,1737441039243,-500.0,0.00021369,2]
[349810319,1737441039253,-500.0,0.00021369,2]
[349810320,1737441039262,-796.59,0.00021369,2]
[349810321,1737441039272,-500.0,0.00021369,2]
[349810322,1737441039282,-208.61030533,0.00021369,2]
[349810323,1737441039292,-500.0,0.00021369,2]
[349810324,1737441039302,-500.0,0.00021369,2]
[349810326,1737441039312,-3709.5874,0.00021369,2]
[349810327,1737441039323,-1152.0,0.00021385,2]
[349810328,1737441039332,-398.86,0.00021396,2]
[349810329,1737441039342,-150.0,0.00021396,2]
[349810330,1737441039351,-500.0,0.00021468,2]
[349810331,1737441039360,-322.44322404,0.00021468,2]
[349810332,1737441039370,-150.8171064,0.0002156,2]
[349810333,1737441039379,-500.0,0.00021643,2]
[349810334,1737441039388,-500.0,0.00021643,2]
[349810335,1737441039397,-500.0,0.00021643,2]
[349810336,1737441039407,-500.0,0.00021643,2]
[349810337,1737441039416,-500.0,0.00021643,2]
[349810338,1737441039425,-796.59,0.00021643,2]
[349810339,1737441039435,-500.0,0.00021643,2]
[349810340,1737441039444,-500.0,0.00021643,2]
[349810341,1737441039453,-500.0,0.00021643,2]
[349810342,1737441039463,-1764.24214638,0.00021699,2]
[349810343,1737441039472,-1454.0,0.000217,2]
[349810344,1737441039482,-200.0,0.00021726,2]
[349810345,1737441039491,-256.55231983,0.00021742,2]
[349810346,1737441039501,-3916.03132308,0.00021779,2]
[349810347,1737441039510,-3000.0,0.0002178,2]
[349810348,1737441039519,-3916.03132308,0.00021789,2]
[349810349,1737441039529,-500.0,0.00021799,2]
[349810350,1737441039538,-500.0,0.00021799,2]
[349810351,1737441039547,-500.0,0.00021799,2]
[349810352,1737441039556,-500.0,0.00021799,2]
[349810353,1737441039568,-500.0,0.00021799,2]
[349810354,1737441039577,-500.0,0.00021799,2]
[349810355,1737441039586,-500.0,0.00021799,2]
[349810356,1737441039596,-500.0,0.00021799,2]
[349810357,1737441039605,-515.68798349,0.00021799,2]
[349810358,1737441039615,-500.0,0.00021799,2]
[349810359,1737441039624,-264.84681276,0.00021799,2]
[349810360,1737441039633,-373.00054062,0.00021799,2]
[349810361,1737441039643,-500.0,0.00021799,2]
[349810362,1737441039653,-500.0,0.00021799,2]
[349810363,1737441039663,-500.0,0.00021799,2]
[349810364,1737441039672,-541.62,0.00021799,2]
[349810365,1737441039681,-916.41,0.00021799,2]
[349810366,1737441039690,-985.38,0.00021799,2]
[349810367,1737441039699,-493.73218052,0.00021799,2]
[349810368,1737441039709,-631.58,0.00021799,2]
[349810369,1737441039718,-500.0,0.00021799,2]
[349810370,1737441039727,-520.99365167,0.00021799,2]
[349810371,1737441039736,-500.0,0.00021799,2]
[349810372,1737441039745,-500.0,0.00021799,2]
[349810373,1737441039755,-500.0,0.00021799,2]
[349810374,1737441039764,-500.0,0.00021799,2]
[349810375,1737441039773,-430.98070515,0.00021799,2]
[349810376,1737441039782,-500.0,0.00021799,2]
[349810377,1737441039791,-500.0,0.00021799,2]
[349810378,1737441039800,-500.0,0.00021799,2]
[349810379,1737441039810,-500.0,0.00021799,2]
[349810380,1737441039820,-87651.79633735,0.000218,2]
[349810381,1737441039829,-886.19507547,0.000218,2]
[349810382,1737441039839,-5000.0,0.000218,2]
[349810383,1737441039848,-231.24344094,0.000218,2]
[349810384,1737441039857,-3916.03132308,0.00021823,2]
[349810386,1737441039867,-500.0,0.00021824,2]
[349810388,1737441039876,-200.0,0.00021833,2]
[349810390,1737441039885,-3916.03132308,0.00021869,2]
[349810392,1737441039895,-140108.48347285,0.0002187,2]
[349810394,1737441039904,-40582.11408459,0.00021874,3]
[349810396,1737441039913,-513.37,0.00021876,2]
[349810398,1737441039922,-500.0,0.00021876,2]
[349810400,1737441039931,-739.24,0.00021876,2]
[349810402,1737441039940,-14291.1,0.00021876,2]
[349810404,1737441039949,-696.33,0.00021876,2]
[349810406,1737441039958,-500.0,0.00021876,2]
[349810408,1737441039967,-500.0,0.00021876,2]
[349810410,1737441039976,-830.68,0.00021876,2]
[349810412,1737441039985,-500.0,0.00021876,2]
[349810414,1737441039995,-500.0,0.00021876,2]
[349810416,1737441040004,-701.88,0.00021876,2]
[349810418,1737441040013,-500.0,0.00021876,2]
[349810420,1737441040022,-500.0,0.00021876,2]
[349810422,1737441040031,-500.0,0.00021876,2]
[349810424,1737441040040,-500.0,0.00021876,2]
[349810426,1737441040049,-500.0,0.00021876,2]
[349810428,1737441040058,-500.0,0.00021876,2]
[349810430,1737441040068,-500.0,0.00021876,2]
[349810431,1737441040077,-500.0,0.00021876,2]
[349810433,1737441040086,-500.0,0.00021876,2]
[349810435,1737441040095,-500.0,0.00021876,2]
[349810437,1737441040104,-666.09,0.00021876,2]
[349810439,1737441040114,-500.0,0.00021876,2]
[349810441,1737441040123,-500.0,0.00021876,2]
[349810443,1737441040132,-500.0,0.00021876,2]
[349810445,1737441040141,-500.0,0.00021876,2]
[349810447,1737441040153,-500.0,0.0002189,2]
[349810450,1737441040163,-200.0,0.00021893,2]
[349810451,1737441040171,-185.84232324,0.00021899,2]
[349810452,1737441040180,-1480.5276257,0.00021899,2]
[349810453,1737441040189,-7230.85780036,0.00021899,2]
[349810454,1737441040199,-185.84232323,0.000219,2]
[349810455,1737441040207,-1480.5276257,0.000219,2]
[349810456,1737441040216,-3916.03132308,0.000219,2]
[349810457,1737441040226,-1134.06726596,0.000219,2]
[349810458,1737441040236,-25741.8063,0.000219,2]
[349810459,1737441040245,-1320.48,0.000219,31]
[349810460,1737441040254,-1320.48,0.000219,31]
[349810461,1737441040263,-1320.48,0.000219,31]
[349810462,1737441040272,-1320.48,0.000219,31]
[349810463,1737441040281,-1320.48,0.000219,31]
[349810464,1737441040290,-1320.48,0.000219,31]
[349810465,1737441040299,-1320.48,0.000219,31]
[349810466,1737441040307,-1320.48,0.000219,31]
[349810467,1737441040318,-1320.48,0.000219,31]
[349810468,1737441040327,-1320.48,0.000219,31]
[349810469,1737441040336,-1320.48,0.000219,31]
[349810470,1737441040345,-1320.48,0.000219,31]
[349810471,1737441040354,-1320.48,0.000219,31]
[349810472,1737441040363,-1320.48,0.000219,31]
[349810473,1737441040372,-1320.48,0.000219,31]
[349810474,1737441040381,-1320.48,0.000219,31]
[349810475,1737441040390,-185.84232323,0.000219,2]
[349810476,1737441040399,-1480.5276257,0.000219,2]
[349810477,1737441040408,-201.70595577,0.000219,2]
[349810478,1737441040418,-1035.03208662,0.000219,2]
[349810479,1737441040427,-500.0,0.00021917,2]
[349810480,1737441040436,-500.0,0.00021917,2]
[349810481,1737441040445,-500.0,0.00021917,2]
[349810482,1737441040455,-500.0,0.00021917,2]
[349810483,1737441040464,-500.0,0.00021917,2]
[349810484,1737441040474,-500.0,0.00021917,2]
[349810485,1737441040483,-500.0,0.00021917,2]
[349810486,1737441040492,-796.59,0.00021917,2]
[349810487,1737441040501,-500.0,0.00021917,2]
[349810488,1737441040511,-500.0,0.00021917,2]
[349810489,1737441040521,-500.0,0.00021917,2]
[349810490,1737441040530,-2254.72,0.00021918,2]
[349810491,1737441040539,-150.0,0.00021918,2]
[349810492,1737441040549,-16148.0,0.0002195,2]
[349810493,1737441040558,-39999.999999,0.0002195,2]
[349810494,1737441040569,-5456.0,0.00021973,2]
[349810495,1737441040579,-150.0,0.00021973,4]
[349810496,1737441040590,-150.0,0.00021973,4]
[349810497,1737441040600,-150.0,0.00021973,4]
[349810498,1737441040610,-161.95993451,0.00021973,2]
[349810499,1737441040620,-159.95486234,0.00021973,2]
[349810500,1737441040630,-60243.62501479,0.00021979,2]
[349810501,1737441040640,-8000.85,0.0002198,2]
[349810502,1737441040650,-154.95,0.00021988,2]
[349810503,1737441040660,-154.95,0.00021989,2]
[349810504,1737441040669,-154.95,0.00021989,2]
[349810505,1737441040679,-154.95,0.00021989,2]
[349810506,1737441040688,-3100.0,0.0002199,12]
[349810507,1737441040698,-34806.46542109,0.0002199,14]
[349810508,1737441040707,-4095.678206,0.00021993,2]
[349810509,1737441040716,-8916.2585185,0.00021996,2]
[349810510,1737441040727,-748.8800332,0.00021996,2]
[349810511,1737441040737,-763.5191782,0.00021996,2]
[349810512,1737441040746,-524.08,0.00021998,2]
[349810513,1737441040756,-1115.87,0.00021998,2]
[349810514,1737441040767,-395289.22819909,0.00021998,2]
[349810515,1737441040777,-1929.0,0.00021998,2]
[349810516,1737441040786,-469.07037734,0.00021999,10]
[349810517,1737441040795,-500.0,0.00021999,2]
[349810518,1737441040805,-500.0,0.00021999,2]
[349810519,1737441040814,-500.0,0.00021999,2]
[349810520,1737441040825,-500.0,0.00021999,2]
[349810521,1737441040834,-1049.0965,0.00021999,2]
[349810522,1737441040844,-673.59653589,0.00021999,2]
[349810523,1737441040854,-113517.45058512,0.00021999,2]
[349810524,1737441040863,-3535.72870423,0.00021999,2]
[349810525,1737441040872,-1397.1088611,0.00021999,2]
[349810526,1737441040881,-30108.86887276,0.00021999,2]
[349810527,1737441040890,-332.5799057,0.00021999,2]
[349810528,1737441040900,-666.0,0.00021999,2]
[349810529,1737441040909,-198.01371088,0.00021999,2]
[349810530,1737441040918,-9552.40248591,0.00021999,2]
[349810531,1737441040928,-3334910.9456794,0.00022,2]
[349810532,1737441040947,-18884.71271618,0.00022,2]
[349810533,1737441040958,-511.90603702,0.00022,2]
[349810534,1737441040969,-468.40396298,0.00022,2]
[349810535,1737441040980,-7093.79999993,0.00022,2]
[349810536,1737441041127,-393.30662707,0.00021095,2]
[349810537,1737441041137,-707.15843693,0.00022,2]
[349810538,1737441041247,-386.30928348,0.00022,2]
[349810555,1737441042495,-4405.38154148,0.00022,2]
[349810739,1737441045363,-708.43,0.00019178,2]
[349810741,1737441045372,-933.12650686,0.00019178,2]
[349810742,1737441045608,-916.53102,0.00019178,2]
[349810743,1737441045749,-2492.66023232,0.00019178,2]
[349810744,1737441045760,-314.8288564,0.00019178,2]
[349810747,1737441645509,171.75,0.00024,120]
[349810748,1737441686987,155.34,0.00010137,2]
[349810750,1737442155144,-718.67,0.00018413,2]
[349810751,1737442155165,-155.34,0.00018594,2]
[349810762,1737442231562,-981.472,0.00019078,2]
[349810764,1737442231571,-87.53629095,0.00019178,2]
[349810765,1737442231584,-412.46370905,0.00019178,2]
[349810766,1737442231594,-340.30423081,0.00019178,2]
[349810767,1737442231605,-525.72316912,0.00019178,2]
[349810768,1737442231640,-1885.24001276,0.00019178,2]
[349810769,1737442231651,-300.51258731,0.00019178,2]
[349810770,1737442231661,-314.008464,0.00019178,2]
[349810771,1737442231672,-3051.78,0.00019452,2]
[349810772,1737442231683,-1794.13801276,0.00019566,2]
[349810773,1737442231692,-3051.78,0.00019726,2]
[349810774,1737442231701,-3051.78,0.0002,2]
[349810775,1737442231711,-250.0,0.00020032,2]
[349810776,1737442231720,-23900.0,0.00020216,2]
[349810777,1737442231729,-157.97,0.00020244,2]
[349810778,1737442231738,-3051.78,0.00020273,2]
[349810779,1737442231747,-250.0,0.00020299,2]
[349810780,1737442231756,-279.42,0.000203,2]
[349810781,1737442231765,-943.89,0.00020357,2]
[349810782,1737442231775,-1000.0,0.00020475,2]
[349810783,1737442231784,-3051.78,0.00020547,2]
[349810784,1737442231793,-196.9,0.00020579,2]
[349810785,1737442231802,-157.66,0.00020582,2]
[349810786,1737442231811,-250.0,0.00020597,2]
[349810787,1737442231820,-718.67,0.00020677,2]
[349810788,1737442231830,-1852.42,0.00020703,2]
[349810789,1737442231839,-830.18229435,0.00020746,2]
[349810790,1737442231848,-3051.78,0.00020821,2]
[349810791,1737442231857,-174.41,0.00020886,2]
[349810792,1737442231867,-2265.43809695,0.00021,2]
[349810793,1737442231876,-529.83921893,0.00021093,2]
[349810794,1737442231885,-3051.78,0.00021095,2]
[349810795,1737442231895,-12689.0,0.00021133,2]
[349810796,1737442231904,-302.29,0.00021178,2]
[349810797,1737442231913,-311.59,0.00021178,2]
[349810798,1737442231923,-555.38,0.0002123,30]
[349810799,1737442231932,-200.41293131,0.00021269,2]
[349810800,1737442231942,-1990.7105,0.00021269,2]
[349810801,1737442231952,-1515.82738148,0.00021314,2]
[349810802,1737442231962,-3051.78,0.00021369,2]
[349810803,1737442231982,-150.8171064,0.0002156,2]
[349810804,1737442231991,-3051.78,0.00021643,2]
[349810805,1737442232000,-430.3178249,0.00021659,2]
[349810806,1737442232010,-8484.43371563,0.00021728,2]
[349810807,1737442232043,-2467.4940344,0.00021728,2]
[349810808,1737442232052,-1266.14224542,0.00021742,2]
[349810809,1737442232061,-1311.55994232,0.00021744,2]
[349810810,1737442232070,-1266.14224542,0.00021746,2]
[349810811,1737442232081,-200.0,0.00021749,2]
[349810812,1737442232090,-45.94197605,0.00021764,2]
[349810813,1737442232102,-1220.20026937,0.00021764,2]
[349810814,1737442232111,-210.42822871,0.00021765,2]
[349810816,1737442232120,-6257.81038786,0.00021768,2]
[349810818,1737442232135,-688.07246677,0.00021768,2]
[349810934,1737442237583,-2009.78568015,0.00021768,2]
[349810935,1737442237595,-275.40431738,0.00021768,2]
[349810936,1737442237806,-1720.85489787,0.00021768,2]
[349810937,1737442237815,-210.42822871,0.00021791,2]
[349810938,1737442237825,-500.0,0.00021799,2]
[349810939,1737442237834,-210.42822871,0.00021799,2]
[349810940,1737442237844,-1322.0,0.000218,2]
[349810941,1737442237853,-210.42822871,0.00021811,2]
[349810942,1737442237863,-1311.55994232,0.00021817,2]
[349810943,1737442237872,-500.0,0.00021824,2]
[349810944,1737442237881,-366.12323137,0.0002183,2]
[349810945,1737442237892,-10585.80451866,0.0002183,2]
[349810946,1737442237901,-10951.92775003,0.00021834,2]
[349810947,1737442237910,-1311.55994232,0.00021837,2]
[349810948,1737442237919,-1266.14224542,0.00021841,2]
[349810949,1737442237929,-1311.55994232,0.00021855,2]
[349810950,1737442237938,-1266.14224542,0.00021859,2]
[349810951,1737442237947,-210.42822871,0.00021862,2]
[349810952,1737442237956,-1311.55994232,0.00021889,2]
[349810953,1737442237965,-2003.5128,0.0002189,2]
[349810954,1737442237974,-500.0,0.0002189,2]
[349810955,1737442237983,-10951.92775003,0.00021892,2]
[349810956,1737442237992,-2500.0,0.00021899,2]
[349810957,1737442238001,-1000.0,0.000219,2]
[349810958,1737442238010,-5000.0,0.000219,2]
[349810959,1737442238019,-41690.75719945,0.000219,2]
[349810960,1737442238034,-81289.87189114,0.000219,2]